[Event "Early-Titled-Tuesday-Blitz-October-10-2023"]
[Site "Chess.com"]
[Date "2023.10.10"]
[Round "1"]
[White "KnightmareJoker"]
[Black "SlavenPastar"]
[Result "0-1"]
[WhiteElo "2114"]
[BlackElo "2552"]
[TimeControl "180+1"]
[EndTime "8:06:55 PDT"]
[Termination "SlavenPastar won by checkmate"]

1. e4 {[%clk 0:03:00.9]} 1... b6 {[%clk 0:03:00.4]} 2. d4 {[%clk 0:03:00.8]}
2... Bb7 {[%clk 0:03:00.9]} 3. Bd3 {[%clk 0:03:01.5]} 3... Nf6 {[%clk
0:03:01.3]} 4. Qe2 {[%clk 0:02:59.3]} 4... e6 {[%clk 0:03:01.2]} 5. Nc3 {[%clk
0:02:55.3]} 5... Bb4 {[%clk 0:02:57]} 6. Nf3 {[%clk 0:02:55.4]} 6... d5 {[%clk
0:02:56.4]} 7. e5 {[%clk 0:02:55.3]} 7... Ne4 {[%clk 0:02:56.2]} 8. Bd2 {[%clk
0:02:51.6]} 8... Nxd2 {[%clk 0:02:56.1]} 9. Nxd2 {[%clk 0:02:50.4]} 9... c5
{[%clk 0:02:56.1]} 10. Bb5+ {[%clk 0:02:28.3]} 10... Bc6 {[%clk 0:02:56.2]} 11.
Bxc6+ {[%clk 0:02:25.2]} 11... Nxc6 {[%clk 0:02:57.1]} 12. dxc5 {[%clk
0:02:10.4]} 12... Bxc3 {[%clk 0:02:56.3]} 13. bxc3 {[%clk 0:02:09.2]} 13... bxc5
{[%clk 0:02:56.4]} 14. O-O {[%clk 0:02:06.9]} 14... O-O {[%clk 0:02:55.6]} 15.
Nf3 {[%clk 0:02:05.3]} 15... Qa5 {[%clk 0:02:51.9]} 16. Qe3 {[%clk 0:02:02.7]}
16... Rab8 {[%clk 0:02:48]} 17. Rfc1 {[%clk 0:01:51]} 17... Rb2 {[%clk
0:02:46.4]} 18. a4 {[%clk 0:01:51.1]} 18... h6 {[%clk 0:02:42.4]} 19. g4 {[%clk
0:01:49.2]} 19... Rd8 {[%clk 0:02:17.7]} 20. g5 {[%clk 0:01:47.9]} 20... d4
{[%clk 0:02:17.1]} 21. cxd4 {[%clk 0:01:46.6]} 21... cxd4 {[%clk 0:02:17]} 22.
Qe4 {[%clk 0:01:42.3]} 22... Qd5 {[%clk 0:02:16.9]} 23. Qxd5 {[%clk 0:01:38.9]}
23... Rxd5 {[%clk 0:02:17.8]} 24. gxh6 {[%clk 0:01:39.4]} 24... gxh6 {[%clk
0:02:18.2]} 25. Rab1 {[%clk 0:01:12.7]} 25... Rxb1 {[%clk 0:02:11.1]} 26. Rxb1
{[%clk 0:01:12.9]} 26... Nxe5 {[%clk 0:02:10]} 27. Nxe5 {[%clk 0:01:11.8]} 27...
Rxe5 {[%clk 0:02:10.9]} 28. Rb4 {[%clk 0:01:09.7]} 28... Rd5 {[%clk 0:01:46.6]}
29. Kg2 {[%clk 0:01:09.4]} 29... Kg7 {[%clk 0:01:44.2]} 30. Kf3 {[%clk
0:01:07.7]} 30... Kg6 {[%clk 0:01:36.3]} 31. Ke4 {[%clk 0:01:04.5]} 31... f5+
{[%clk 0:01:35.5]} 32. Kf3 {[%clk 0:01:03.3]} 32... e5 {[%clk 0:01:31]} 33. Kg3
{[%clk 0:00:51]} 33... Rc5 {[%clk 0:01:20.7]} 34. Rb7 {[%clk 0:00:49.3]} 34...
Rc3+ {[%clk 0:01:13]} 35. Kg2 {[%clk 0:00:49]} 35... Rxc2 {[%clk 0:01:13.2]} 36.
Rxa7 {[%clk 0:00:49.5]} 36... e4 {[%clk 0:01:13.4]} 37. Kf1 {[%clk 0:00:48.6]}
37... d3 {[%clk 0:01:12.3]} 38. a5 {[%clk 0:00:46.2]} 38... Rc1+ {[%clk
0:01:10.8]} 39. Kg2 {[%clk 0:00:44.3]} 39... d2 {[%clk 0:01:11.7]} 40. Ra6+
{[%clk 0:00:43.2]} 40... Kh5 {[%clk 0:01:03.4]} 41. Rd6 {[%clk 0:00:30.4]} 41...
d1=Q {[%clk 0:01:01.2]} 42. Rxd1 {[%clk 0:00:31.3]} 42... Rxd1 {[%clk
0:01:01.8]} 43. a6 {[%clk 0:00:32.2]} 43... f4 {[%clk 0:00:55.2]} 44. Kh3 {[%clk
0:00:31.7]} 44... e3 {[%clk 0:00:51.4]} 45. a7 {[%clk 0:00:27.9]} 45... exf2
{[%clk 0:00:47.9]} 46. a8=Q {[%clk 0:00:17.7]} 46... f1=Q+ {[%clk 0:00:48.2]}
47. Qg2 {[%clk 0:00:18.4]} 47... Rd3# {[%clk 0:00:47.8]} 0-1

[Event "Early-Titled-Tuesday-Blitz-October-10-2023"]
[Site "Chess.com"]
[Date "2023.10.10"]
[Round "1"]
[White "CarlosjPineror"]
[Black "MrTattaglia"]
[Result "0-1"]
[WhiteElo "2501"]
[BlackElo "2906"]
[TimeControl "180+1"]
[EndTime "8:06:57 PDT"]
[Termination "MrTattaglia won by checkmate"]

1. e4 {[%clk 0:02:58]} 1... c5 {[%clk 0:01:56.2]} 2. Nf3 {[%clk 0:02:55.8]} 2...
d6 {[%clk 0:01:56.2]} 3. d4 {[%clk 0:02:56]} 3... cxd4 {[%clk 0:01:56.6]} 4.
Nxd4 {[%clk 0:02:56.6]} 4... Nf6 {[%clk 0:01:57.1]} 5. Nc3 {[%clk 0:02:57.1]}
5... a6 {[%clk 0:01:56]} 6. Bg5 {[%clk 0:02:57.5]} 6... g6 {[%clk 0:01:55.7]} 7.
Bc4 {[%clk 0:02:46.3]} 7... Bg7 {[%clk 0:01:55.4]} 8. O-O {[%clk 0:02:44.9]}
8... O-O {[%clk 0:01:54.7]} 9. Bb3 {[%clk 0:02:45.6]} 9... Nc6 {[%clk
0:01:54.7]} 10. Nxc6 {[%clk 0:02:41.7]} 10... bxc6 {[%clk 0:01:55.6]} 11. e5
{[%clk 0:02:41.2]} 11... dxe5 {[%clk 0:01:54.8]} 12. Qe2 {[%clk 0:02:39.6]}
12... Nd5 {[%clk 0:01:52.8]} 13. Ne4 {[%clk 0:02:36.1]} 13... Qc7 {[%clk
0:01:50.5]} 14. Rfd1 {[%clk 0:02:30.1]} 14... a5 {[%clk 0:01:49.6]} 15. c4
{[%clk 0:02:26.2]} 15... Nf4 {[%clk 0:01:48.1]} 16. Qc2 {[%clk 0:02:17.7]} 16...
Bf5 {[%clk 0:01:38.4]} 17. f3 {[%clk 0:02:16.5]} 17... a4 {[%clk 0:01:36.1]} 18.
Bxa4 {[%clk 0:01:57.7]} 18... Qa7+ {[%clk 0:01:35.3]} 19. Kh1 {[%clk 0:01:47.4]}
19... Bxe4 {[%clk 0:01:29.8]} 20. Qxe4 {[%clk 0:01:46.2]} 20... Qxa4 {[%clk
0:01:29.2]} 21. Bxe7 {[%clk 0:01:46.5]} 21... Rfe8 {[%clk 0:01:28.4]} 22. b3
{[%clk 0:01:45.9]} 22... Qa5 {[%clk 0:01:24]} 23. Bd6 {[%clk 0:01:45.8]} 23...
Qc3 {[%clk 0:01:21.3]} 24. Rac1 {[%clk 0:01:44]} 24... Qa5 {[%clk 0:01:08.2]}
25. g3 {[%clk 0:01:39.7]} 25... Ne6 {[%clk 0:01:07.3]} 26. Qxc6 {[%clk
0:01:39.1]} 26... Qxa2 {[%clk 0:01:06.4]} 27. Ra1 {[%clk 0:01:37.8]} 27... Qxa1
{[%clk 0:00:43.5]} 28. Rxa1 {[%clk 0:01:38.7]} 28... Rxa1+ {[%clk 0:00:43.3]}
29. Kg2 {[%clk 0:01:39.3]} 29... Raa8 {[%clk 0:00:43.9]} 30. c5 {[%clk
0:01:35.1]} 30... Ra2+ {[%clk 0:00:43.2]} 31. Kh3 {[%clk 0:01:33.7]} 31... Rea8
{[%clk 0:00:32.5]} 32. f4 {[%clk 0:01:21.5]} 32... exf4 {[%clk 0:00:32]} 33.
gxf4 {[%clk 0:01:22.4]} 33... Rd8 {[%clk 0:00:29.9]} 34. b4 {[%clk 0:01:14.1]}
34... Rc2 {[%clk 0:00:28.5]} 35. b5 {[%clk 0:01:14.2]} 35... Nxc5 {[%clk
0:00:24.9]} 36. Bxc5 {[%clk 0:01:10.7]} 36... Rd3+ {[%clk 0:00:24.2]} 37. Kg4
{[%clk 0:01:02.4]} 37... Bf8 {[%clk 0:00:12.5]} 38. Qa8 {[%clk 0:00:35.5]} 38...
h5+ {[%clk 0:00:11.4]} 39. Kg5 {[%clk 0:00:35.1]} 39... Rxc5+ {[%clk 0:00:11]}
40. Kf6 {[%clk 0:00:34.4]} 40... Rf5# {[%clk 0:00:06.5]} 0-1

[Event "Early-Titled-Tuesday-Blitz-October-10-2023"]
[Site "Chess.com"]
[Date "2023.10.10"]
[Round "1"]
[White "vaniavindy"]
[Black "Pingah9"]
[Result "0-1"]
[WhiteElo "2162"]
[BlackElo "2566"]
[TimeControl "180+1"]
[EndTime "8:06:57 PDT"]
[Termination "Pingah9 won on time"]

1. d4 {[%clk 0:02:59.1]} 1... g6 {[%clk 0:02:59]} 2. c4 {[%clk 0:03:00]} 2...
Bg7 {[%clk 0:02:59.3]} 3. Nc3 {[%clk 0:02:59.4]} 3... c5 {[%clk 0:02:58.4]} 4.
e3 {[%clk 0:02:59.2]} 4... Nf6 {[%clk 0:02:57.4]} 5. Nf3 {[%clk 0:02:59.5]} 5...
O-O {[%clk 0:02:57.5]} 6. d5 {[%clk 0:02:59]} 6... e6 {[%clk 0:02:52.4]} 7. e4
{[%clk 0:02:53.9]} 7... exd5 {[%clk 0:02:51.8]} 8. exd5 {[%clk 0:02:41.3]} 8...
Re8+ {[%clk 0:02:45.4]} 9. Be2 {[%clk 0:02:26]} 9... d6 {[%clk 0:02:44.8]} 10.
O-O {[%clk 0:02:13.6]} 10... Na6 {[%clk 0:02:43.8]} 11. h3 {[%clk 0:01:51.6]}
11... Nc7 {[%clk 0:02:42.3]} 12. Bf4 {[%clk 0:01:42.7]} 12... Ne4 {[%clk
0:02:38.2]} 13. Nxe4 {[%clk 0:01:18.7]} 13... Rxe4 {[%clk 0:02:39.1]} 14. Bg5
{[%clk 0:01:17.5]} 14... Qf8 {[%clk 0:02:29.9]} 15. Rb1 {[%clk 0:01:07.8]} 15...
h6 {[%clk 0:02:20.3]} 16. Be3 {[%clk 0:00:55.7]} 16... Re8 {[%clk 0:02:05.1]}
17. Qd2 {[%clk 0:00:27.4]} 17... Bf5 {[%clk 0:02:03.5]} 18. Rbc1 {[%clk
0:00:26.3]} 18... Kh7 {[%clk 0:01:54.4]} 19. Rfe1 {[%clk 0:00:23.5]} 19... Be4
{[%clk 0:01:51.8]} 20. a3 {[%clk 0:00:19.5]} 20... b5 {[%clk 0:01:48.7]} 21.
cxb5 {[%clk 0:00:17.7]} 21... Nxd5 {[%clk 0:01:46]} 22. Nh2 {[%clk 0:00:08.4]}
22... Nxe3 {[%clk 0:01:44]} 23. fxe3 {[%clk 0:00:07.3]} 23... d5 {[%clk
0:01:37.1]} 24. Bf3 {[%clk 0:00:05.4]} 24... Rad8 {[%clk 0:01:31.2]} 25. Bxe4
{[%clk 0:00:05.1]} 25... Rxe4 {[%clk 0:01:31.1]} 26. Nf3 {[%clk 0:00:04.8]}
26... Qe7 {[%clk 0:01:29.1]} 27. Rcd1 {[%clk 0:00:03.6]} 27... Qb7 {[%clk
0:01:15]} 28. a4 {[%clk 0:00:03.2]} 28... a6 {[%clk 0:01:14.4]} 29. bxa6 {[%clk
0:00:03.2]} 29... Qxa6 {[%clk 0:01:15.3]} 30. Qc2 {[%clk 0:00:02.5]} 30... Qxa4
{[%clk 0:01:12.6]} 31. Qxc5 {[%clk 0:00:01.3]} 31... Qb4 {[%clk 0:01:07.7]} 32.
Qxb4 {[%clk 0:00:01.3]} 32... Rxb4 {[%clk 0:01:08.5]} 33. e4 {[%clk 0:00:01.2]}
33... d4 {[%clk 0:01:02.7]} 34. e5 {[%clk 0:00:01.4]} 34... Bf8 {[%clk
0:00:37.8]} 0-1

[Event "Early-Titled-Tuesday-Blitz-October-10-2023"]
[Site "Chess.com"]
[Date "2023.10.10"]
[Round "1"]
[White "Goi_Manne"]
[Black "MKlose11"]
[Result "0-1"]
[WhiteElo "2295"]
[BlackElo "2607"]
[TimeControl "180+1"]
[EndTime "8:06:58 PDT"]
[Termination "MKlose11 won by resignation"]

1. e4 {[%clk 0:03:00.9]} 1... e6 {[%clk 0:02:59.6]} 2. b3 {[%clk 0:02:58.8]}
2... d5 {[%clk 0:02:58.9]} 3. Bb2 {[%clk 0:02:59.3]} 3... dxe4 {[%clk
0:02:49.9]} 4. Nc3 {[%clk 0:02:58.6]} 4... Nf6 {[%clk 0:02:48.5]} 5. Qe2 {[%clk
0:02:56.2]} 5... Nbd7 {[%clk 0:02:44.3]} 6. O-O-O {[%clk 0:02:54.1]} 6... Be7
{[%clk 0:02:40.1]} 7. Nxe4 {[%clk 0:02:53.8]} 7... Nxe4 {[%clk 0:02:35.4]} 8.
Qxe4 {[%clk 0:02:54.7]} 8... Nf6 {[%clk 0:02:26]} 9. Qe3 {[%clk 0:02:52.4]} 9...
O-O {[%clk 0:02:20.2]} 10. h4 {[%clk 0:02:44.5]} 10... a5 {[%clk 0:02:19.4]} 11.
h5 {[%clk 0:02:42.3]} 11... h6 {[%clk 0:02:06.5]} 12. a4 {[%clk 0:02:39.6]}
12... c6 {[%clk 0:01:55.7]} 13. g4 {[%clk 0:02:26.7]} 13... Nxg4 {[%clk
0:01:40.3]} 14. Qg3 {[%clk 0:02:26.7]} 14... f5 {[%clk 0:01:34.7]} 15. f3 {[%clk
0:02:23.5]} 15... Nf6 {[%clk 0:01:33.8]} 16. Ne2 {[%clk 0:02:20]} 16... b5
{[%clk 0:01:29.9]} 17. Rg1 {[%clk 0:02:19.4]} 17... Rf7 {[%clk 0:01:28.7]} 18.
axb5 {[%clk 0:02:17.5]} 18... a4 {[%clk 0:01:27.2]} 19. bxa4 {[%clk 0:02:08.9]}
19... cxb5 {[%clk 0:01:24.8]} 20. axb5 {[%clk 0:01:52.8]} 20... Ba3 {[%clk
0:01:23.8]} 21. Qe5 {[%clk 0:01:48.8]} 21... Qa5 {[%clk 0:01:09.5]} 22. Bg2
{[%clk 0:01:20.7]} 22... Rb7 {[%clk 0:00:23.5]} 23. Bh1 {[%clk 0:01:02.8]} 23...
Bxb2+ {[%clk 0:00:14.3]} 24. Qxb2 {[%clk 0:01:02.4]} 24... Rxb5 {[%clk
0:00:14.8]} 25. Qxb5 {[%clk 0:00:28.9]} 25... Qxb5 {[%clk 0:00:14.5]} 26. d3
{[%clk 0:00:29.8]} 26... Qb4 {[%clk 0:00:14]} 27. c3 {[%clk 0:00:26.4]} 27...
Qb3 {[%clk 0:00:11.8]} 28. Kd2 {[%clk 0:00:25.4]} 28... Ra2+ {[%clk 0:00:10]}
29. Ke3 {[%clk 0:00:26.1]} 29... Nd5+ {[%clk 0:00:09.5]} 30. Kf2 {[%clk
0:00:24.8]} 30... Nxc3 {[%clk 0:00:07.2]} 31. Rde1 {[%clk 0:00:25.5]} 31... Nxe2
{[%clk 0:00:05.6]} 32. Rxe2 {[%clk 0:00:26.4]} 32... Qb6+ {[%clk 0:00:06]} 33.
Kf1 {[%clk 0:00:24.5]} 33... Rxe2 {[%clk 0:00:06.9]} 0-1

[Event "Early-Titled-Tuesday-Blitz-October-10-2023"]
[Site "Chess.com"]
[Date "2023.10.10"]
[Round "1"]
[White "chenrip"]
[Black "Semen_Khanin"]
[Result "1/2-1/2"]
[WhiteElo "2489"]
[BlackElo "2853"]
[TimeControl "180+1"]
[EndTime "8:07:05 PDT"]
[Termination "Game drawn - insufficient material"]

1. e4 {[%clk 0:02:54.8]} 1... c5 {[%clk 0:02:59.6]} 2. Nf3 {[%clk 0:02:54.7]}
2... d6 {[%clk 0:02:59.4]} 3. Bb5+ {[%clk 0:02:55.2]} 3... Bd7 {[%clk
0:02:58.1]} 4. a4 {[%clk 0:02:56.1]} 4... g6 {[%clk 0:02:57.1]} 5. O-O {[%clk
0:02:55.3]} 5... Bg7 {[%clk 0:02:57]} 6. d3 {[%clk 0:02:55.6]} 6... Nc6 {[%clk
0:02:54.4]} 7. Nc3 {[%clk 0:02:55.1]} 7... Nf6 {[%clk 0:02:53.6]} 8. h3 {[%clk
0:02:54.4]} 8... O-O {[%clk 0:02:53.7]} 9. Be3 {[%clk 0:02:55]} 9... h6 {[%clk
0:02:50.8]} 10. Qd2 {[%clk 0:02:55.3]} 10... Kh7 {[%clk 0:02:51.2]} 11. Nh2
{[%clk 0:02:55.1]} 11... Nd4 {[%clk 0:02:49.2]} 12. Bxd7 {[%clk 0:02:53.6]}
12... Nxd7 {[%clk 0:02:49]} 13. f4 {[%clk 0:02:53.6]} 13... f5 {[%clk
0:02:47.9]} 14. Nf3 {[%clk 0:02:53.1]} 14... e5 {[%clk 0:02:46.5]} 15. fxe5
{[%clk 0:02:51.8]} 15... dxe5 {[%clk 0:02:45.9]} 16. Nd5 {[%clk 0:02:48.4]}
16... Nf6 {[%clk 0:02:42.6]} 17. Bxd4 {[%clk 0:02:32.2]} 17... cxd4 {[%clk
0:02:31.9]} 18. Nxf6+ {[%clk 0:02:27.3]} 18... Qxf6 {[%clk 0:02:32.8]} 19. Rae1
{[%clk 0:02:13.5]} 19... Qd6 {[%clk 0:02:27.8]} 20. Qa5 {[%clk 0:02:02.4]} 20...
b6 {[%clk 0:02:23.6]} 21. Qb5 {[%clk 0:02:00.4]} 21... Rac8 {[%clk 0:02:23.2]}
22. Re2 {[%clk 0:01:59.9]} 22... Rc5 {[%clk 0:02:22.3]} 23. Qb3 {[%clk
0:01:57.5]} 23... f4 {[%clk 0:02:18.3]} 24. Nd2 {[%clk 0:01:41.8]} 24... g5
{[%clk 0:02:10.5]} 25. Nc4 {[%clk 0:01:41.8]} 25... Qd7 {[%clk 0:02:09]} 26.
Ref2 {[%clk 0:01:33]} 26... h5 {[%clk 0:02:08.5]} 27. Kh2 {[%clk 0:01:29.8]}
27... g4 {[%clk 0:02:08.1]} 28. g3 {[%clk 0:01:27.6]} 28... fxg3+ {[%clk
0:02:04.6]} 29. Kxg3 {[%clk 0:01:25.3]} 29... Rxf2 {[%clk 0:01:58]} 30. Rxf2
{[%clk 0:01:25]} 30... gxh3 {[%clk 0:01:58.9]} 31. Rf5 {[%clk 0:01:23]} 31...
Rc6 {[%clk 0:01:54.1]} 32. Kxh3 {[%clk 0:01:15.7]} 32... Rf6 {[%clk 0:01:51.8]}
33. Qb5 {[%clk 0:00:49.9]} 33... Qxb5 {[%clk 0:01:24]} 34. axb5 {[%clk
0:00:49.2]} 34... Rxf5 {[%clk 0:01:24.9]} 35. exf5 {[%clk 0:00:49.5]} 35... Kh6
{[%clk 0:01:25.7]} 36. Nd6 {[%clk 0:00:41.8]} 36... Kg5 {[%clk 0:01:24.7]} 37.
Kg3 {[%clk 0:00:22.6]} 37... Bf8 {[%clk 0:01:23.5]} 38. Nc8 {[%clk 0:00:15]}
38... Kxf5 {[%clk 0:01:23]} 39. Nxa7 {[%clk 0:00:15.5]} 39... e4 {[%clk
0:01:17.2]} 40. dxe4+ {[%clk 0:00:15.2]} 40... Kxe4 {[%clk 0:01:17.5]} 41. Nc8
{[%clk 0:00:15.2]} 41... Bc5 {[%clk 0:01:16.6]} 42. b4 {[%clk 0:00:14.8]} 42...
Bxb4 {[%clk 0:01:16.7]} 43. Nxb6 {[%clk 0:00:15.3]} 43... Bd6+ {[%clk
0:01:13.7]} 44. Kh4 {[%clk 0:00:14.7]} 44... Kf3 {[%clk 0:01:02.2]} 45. Nc4
{[%clk 0:00:14.3]} 45... Bb8 {[%clk 0:01:01.2]} 46. Na5 {[%clk 0:00:11.9]} 46...
Ke2 {[%clk 0:01:00.9]} 47. Nc6 {[%clk 0:00:12.3]} 47... Bc7 {[%clk 0:00:46.8]}
48. Nxd4+ {[%clk 0:00:10.9]} 48... Kd2 {[%clk 0:00:47.3]} 49. Ne6 {[%clk
0:00:09.9]} 49... Bb6 {[%clk 0:00:46.9]} 50. Kxh5 {[%clk 0:00:09.9]} 50... Kxc2
{[%clk 0:00:47.2]} 51. Kg6 {[%clk 0:00:10.1]} 51... Kc3 {[%clk 0:00:47.7]} 52.
Kf6 {[%clk 0:00:09.9]} 52... Kc4 {[%clk 0:00:48.2]} 53. Ke7 {[%clk 0:00:10]}
53... Kxb5 {[%clk 0:00:49.1]} 1/2-1/2

[Event "Early-Titled-Tuesday-Blitz-October-10-2023"]
[Site "Chess.com"]
[Date "2023.10.10"]
[Round "1"]
[White "chessfatbear"]
[Black "Masterbeaterr"]
[Result "1-0"]
[WhiteElo "2839"]
[BlackElo "2470"]
[TimeControl "180+1"]
[EndTime "8:07:05 PDT"]
[Termination "chessfatbear won by resignation"]

1. d4 {[%clk 0:02:59.9]} 1... d5 {[%clk 0:02:59.8]} 2. Nf3 {[%clk 0:03:00.1]}
2... Nf6 {[%clk 0:02:59.1]} 3. Bf4 {[%clk 0:02:59.6]} 3... e6 {[%clk 0:02:58.2]}
4. e3 {[%clk 0:02:59.1]} 4... c5 {[%clk 0:02:56.2]} 5. Nbd2 {[%clk 0:02:58.9]}
5... Nc6 {[%clk 0:02:56.4]} 6. c3 {[%clk 0:02:58.6]} 6... Qb6 {[%clk 0:02:50.8]}
7. Rb1 {[%clk 0:02:57.6]} 7... Nh5 {[%clk 0:02:49.6]} 8. Bg5 {[%clk 0:02:54.8]}
8... h6 {[%clk 0:02:48.9]} 9. Bh4 {[%clk 0:02:55.2]} 9... g5 {[%clk 0:02:49.1]}
10. Bg3 {[%clk 0:02:55.3]} 10... Nxg3 {[%clk 0:02:49.6]} 11. hxg3 {[%clk
0:02:54.9]} 11... Bg7 {[%clk 0:02:50.2]} 12. Bd3 {[%clk 0:02:53.3]} 12... Bd7
{[%clk 0:02:43.7]} 13. Qe2 {[%clk 0:02:52.8]} 13... O-O-O {[%clk 0:02:42.9]} 14.
b4 {[%clk 0:02:37.4]} 14... cxd4 {[%clk 0:02:36.3]} 15. cxd4 {[%clk 0:02:34.4]}
15... Kb8 {[%clk 0:02:26.2]} 16. O-O {[%clk 0:02:31.7]} 16... g4 {[%clk
0:02:23.9]} 17. Nh4 {[%clk 0:02:29.8]} 17... f5 {[%clk 0:02:23.6]} 18. Ng6
{[%clk 0:02:25.7]} 18... Rhg8 {[%clk 0:02:18.3]} 19. Nf4 {[%clk 0:02:25.3]}
19... Ne7 {[%clk 0:02:06.2]} 20. Nb3 {[%clk 0:02:22.7]} 20... Rh8 {[%clk
0:01:57.3]} 21. Nc5 {[%clk 0:02:22.2]} 21... Bc8 {[%clk 0:01:57.6]} 22. a4
{[%clk 0:02:21.5]} 22... h5 {[%clk 0:01:56.7]} 23. a5 {[%clk 0:02:20.4]} 23...
Qd6 {[%clk 0:01:50.2]} 24. b5 {[%clk 0:02:07.2]} 24... h4 {[%clk 0:01:48.4]} 25.
b6 {[%clk 0:02:07]} 25... a6 {[%clk 0:01:46]} 26. Bxa6 {[%clk 0:01:58.3]} 26...
hxg3 {[%clk 0:01:43.2]} 27. fxg3 {[%clk 0:01:55.9]} 27... e5 {[%clk 0:01:36.5]}
28. Nxb7 {[%clk 0:01:45.9]} 28... Bxb7 {[%clk 0:01:16.5]} 29. Bxb7 {[%clk
0:01:46.8]} 29... Kxb7 {[%clk 0:01:13.9]} 30. a6+ {[%clk 0:01:45.4]} 30... Ka8
{[%clk 0:01:13.9]} 31. a7 {[%clk 0:01:38.9]} 31... Rd7 {[%clk 0:00:57.6]} 32.
b7+ {[%clk 0:01:18]} 32... Rxb7 {[%clk 0:00:57.2]} 33. Rxb7 {[%clk 0:01:18.5]}
33... Kxb7 {[%clk 0:00:58.1]} 34. Rb1+ {[%clk 0:01:18.4]} 34... Ka8 {[%clk
0:00:58]} 35. Qb5 {[%clk 0:01:17.4]} 35... Qc7 {[%clk 0:00:39.5]} 36. Nxd5
{[%clk 0:00:58.1]} 36... Qxa7 {[%clk 0:00:30.3]} 37. Nxe7 {[%clk 0:00:45.7]}
37... Rb8 {[%clk 0:00:27]} 38. Qc6+ {[%clk 0:00:38.8]} 38... Rb7 {[%clk
0:00:27]} 39. Nc8 {[%clk 0:00:34.8]} 1-0

[Event "Early-Titled-Tuesday-Blitz-October-10-2023"]
[Site "Chess.com"]
[Date "2023.10.10"]
[Round "1"]
[White "emeli_chess"]
[Black "SashaKuzhilniy"]
[Result "0-1"]
[WhiteElo "2358"]
[BlackElo "2643"]
[TimeControl "180+1"]
[EndTime "8:07:05 PDT"]
[Termination "SashaKuzhilniy won on time"]

1. d4 {[%clk 0:02:55.1]} 1... g6 {[%clk 0:02:59.2]} 2. c4 {[%clk 0:02:54.7]}
2... Bg7 {[%clk 0:02:59.7]} 3. Nc3 {[%clk 0:02:54.7]} 3... c5 {[%clk 0:02:58.1]}
4. d5 {[%clk 0:02:54.3]} 4... d6 {[%clk 0:02:54.3]} 5. e4 {[%clk 0:02:53.1]}
5... Bxc3+ {[%clk 0:02:53.7]} 6. bxc3 {[%clk 0:02:52.9]} 6... e5 {[%clk
0:02:54.2]} 7. dxe6 {[%clk 0:02:47.7]} 7... Bxe6 {[%clk 0:02:53.9]} 8. e5 {[%clk
0:02:38.9]} 8... dxe5 {[%clk 0:02:49.2]} 9. Qxd8+ {[%clk 0:02:24.2]} 9... Kxd8
{[%clk 0:02:50.1]} 10. Be3 {[%clk 0:02:09]} 10... Nd7 {[%clk 0:02:44.1]} 11. Nf3
{[%clk 0:01:58.6]} 11... f6 {[%clk 0:02:41.1]} 12. Nd2 {[%clk 0:01:57.5]} 12...
Kc7 {[%clk 0:02:39.6]} 13. Nb3 {[%clk 0:01:54.5]} 13... b6 {[%clk 0:02:39.6]}
14. a4 {[%clk 0:01:54.3]} 14... a5 {[%clk 0:02:39.5]} 15. Be2 {[%clk 0:01:44.6]}
15... Ne7 {[%clk 0:02:39.2]} 16. O-O {[%clk 0:01:44.4]} 16... Nf5 {[%clk
0:02:38]} 17. Bd2 {[%clk 0:01:37.4]} 17... Rad8 {[%clk 0:02:37]} 18. Rfd1 {[%clk
0:01:35.6]} 18... Nd6 {[%clk 0:02:33.1]} 19. Bh6 {[%clk 0:01:29.6]} 19... Nxc4
{[%clk 0:02:19.5]} 20. Bg7 {[%clk 0:01:26.1]} 20... Rhg8 {[%clk 0:02:19.1]} 21.
Rxd7+ {[%clk 0:01:20.9]} 21... Rxd7 {[%clk 0:02:20]} 22. Bxf6 {[%clk 0:01:20.8]}
22... Rf8 {[%clk 0:02:15.3]} 23. Bg5 {[%clk 0:01:09.2]} 23... Nd6 {[%clk
0:01:41.4]} 24. Nd2 {[%clk 0:01:06.5]} 24... Nf7 {[%clk 0:01:41]} 25. Be3 {[%clk
0:01:04.8]} 25... Rfd8 {[%clk 0:01:39]} 26. Ne4 {[%clk 0:00:59.8]} 26... Bf5
{[%clk 0:01:28.4]} 27. f3 {[%clk 0:00:46.8]} 27... Bxe4 {[%clk 0:01:27.6]} 28.
fxe4 {[%clk 0:00:46.8]} 28... Nd6 {[%clk 0:01:25.1]} 29. Bg5 {[%clk 0:00:33.6]}
29... Nxe4 {[%clk 0:01:13.9]} 30. Bxd8+ {[%clk 0:00:32.4]} 30... Rxd8 {[%clk
0:01:14.8]} 31. Rc1 {[%clk 0:00:27.8]} 31... Rd2 {[%clk 0:01:14]} 32. Bf3 {[%clk
0:00:28]} 32... Ng5 {[%clk 0:01:10.8]} 33. Ba8 {[%clk 0:00:26]} 33... Kd6 {[%clk
0:01:02.5]} 34. Rf1 {[%clk 0:00:21.8]} 34... Rc2 {[%clk 0:00:50.4]} 35. h4
{[%clk 0:00:15.8]} 35... Ne6 {[%clk 0:00:50]} 36. Rf7 {[%clk 0:00:10.4]} 36...
Rxc3 {[%clk 0:00:42.5]} 37. Rxh7 {[%clk 0:00:09.4]} 37... Rc4 {[%clk 0:00:40.2]}
38. Rb7 {[%clk 0:00:08.4]} 38... Rb4 {[%clk 0:00:38]} 39. Rb8 {[%clk 0:00:06.8]}
39... c4 {[%clk 0:00:36.1]} 40. Rg8 {[%clk 0:00:04.6]} 40... c3 {[%clk
0:00:34.6]} 0-1